Department Family,Entity,Date Paid,Expense Type,Expense Area,Supplier,Transaction Number,AP Amount
Department of Health,East London NHS Foundation Trust,01/09/2021,Bldg/Eng Equip Maint/Rep,Estates,RYDON MAINTENANCE LTD,39356167,"104,203.05"
Department of Health,East London NHS Foundation Trust,01/09/2021,SLA Charges,B - Bedford Hospital SLA,BEDFORD HOSPITALS NHS TRUST,39317822,"33,168.73"
Department of Health,East London NHS Foundation Trust,01/09/2021,SLA Charges,B - Bedford Hospital SLA,BEDFORD HOSPITALS NHS TRUST,39291053,"34,416.24"
Department of Health,East London NHS Foundation Trust,01/09/2021,SLA Charges,B-Liaison and Diversion,HERTFORDSHIRE PARTNERSHIP NHS FOUNDATION TRUST,39291101,"91,110.29"
Department of Health,East London NHS Foundation Trust,01/09/2021,SLA Charges,Barts Payroll SLA,UNIVERSITY HOSPITALS BIRMINGHAM NHS FOUNDATION TRUST,39318206,"25,094.83"
Department of Health,East London NHS Foundation Trust,01/09/2021,SLA Charges,B - Bedford Hospital SLA,BEDFORD HOSPITALS NHS TRUST,39355514,"33,168.73"
Department of Health,East London NHS Foundation Trust,01/09/2021,Bldg/Eng Equip Maint/Rep,Estates,RYDON MAINTENANCE LTD,39356167,"104,203.05"
Department of Health,East London NHS Foundation Trust,01/09/2021,SLA Charges,B - Bedford Hospital SLA,BEDFORD HOSPITALS NHS TRUST,39317822,"33,168.73"
Department of Health,East London NHS Foundation Trust,01/09/2021,SLA Charges,B - Bedford Hospital SLA,BEDFORD HOSPITALS NHS TRUST,39291053,"34,416.24"
Department of Health,East London NHS Foundation Trust,01/09/2021,SLA Charges,B-Liaison and Diversion,HERTFORDSHIRE PARTNERSHIP NHS FOUNDATION TRUST,39291101,"91,110.29"
Department of Health,East London NHS Foundation Trust,01/09/2021,SLA Charges,Barts Payroll SLA,UNIVERSITY HOSPITALS BIRMINGHAM NHS FOUNDATION TRUST,39318206,"25,094.83"
Department of Health,East London NHS Foundation Trust,01/09/2021,SLA Charges,B - Bedford Hospital SLA,BEDFORD HOSPITALS NHS TRUST,39355514,"33,168.73"
Department of Health,East London NHS Foundation Trust,01/09/2021,Electricity,L-Estates and Facilities,BEDFORDSHIRE HOSPITALS NHS FOUNDATION TRUST,39219022,"26,918.61"
Department of Health,East London NHS Foundation Trust,01/09/2021,SLA Charges,B - Bedford Hospital SLA,BEDFORDSHIRE HOSPITALS NHS FOUNDATION TRUST,39317825,"33,168.73"
Department of Health,East London NHS Foundation Trust,01/09/2021,SLA Charges,L-Ltn Dun Ect,BEDFORDSHIRE HOSPITALS NHS FOUNDATION TRUST,39317855,"33,168.73"
Department of Health,East London NHS Foundation Trust,03/09/2021,Phone Rental and Calls,Digital Infrastructure,UKCLOUD LTD,39401377,"82,888.69"
Department of Health,East London NHS Foundation Trust,03/09/2021,Commissioning Other Contr,NCEL NCA,ELLERN MEDE BARNET,39401346,"25,883.45"
Department of Health,East London NHS Foundation Trust,08/09/2021,Bldg/Eng Equip Maint/Rep,MBU,GK WORKS LTD,39253024,"75,525.97"
Department of Health,East London NHS Foundation Trust,08/09/2021,Bldg/Eng Equip Maint/Rep,Estates,GK WORKS LTD,39253024,"2,259.98"
Department of Health,East London NHS Foundation Trust,08/09/2021,SLA Charges,ICT Team,OMNIPROJECT LTD,39387728,"35,000.00"
Department of Health,East London NHS Foundation Trust,08/09/2021,SLA Charges,ICT Team,OMNIPROJECT LTD,39387728,"7,000.00"
Department of Health,East London NHS Foundation Trust,08/09/2021,Electricity,L-Poplars Ward,EDF ENERGY 1 LTD,39380526,"29,190.68"
Department of Health,East London NHS Foundation Trust,08/09/2021,SLA Charges,B-COVID 19,G4S FACILITIES MANAGEMENT (UK) LTD,39253351,"10,679.76"
Department of Health,East London NHS Foundation Trust,08/09/2021,SLA Charges,L-COVID 19,G4S FACILITIES MANAGEMENT (UK) LTD,39253351,"10,679.76"
Department of Health,East London NHS Foundation Trust,08/09/2021,SLA Charges,CH AMH Bevan Ward,JLA TOTAL CARE LTD,39404680,"4,399.85"
Department of Health,East London NHS Foundation Trust,08/09/2021,Laundry Maint Contracts,CH AMH Brett Ward,JLA TOTAL CARE LTD,39404680,"4,399.71"
Department of Health,East London NHS Foundation Trust,08/09/2021,Laundry Maint Contracts,CH AMH Conolly Ward,JLA TOTAL CARE LTD,39404680,"4,399.85"
Department of Health,East London NHS Foundation Trust,08/09/2021,Laundry Maint Contracts,CH AMH Gardner Ward,JLA TOTAL CARE LTD,39404680,"4,399.81"
Department of Health,East London NHS Foundation Trust,08/09/2021,Laundry Maint Contracts,CH AMH Joshua Ward,JLA TOTAL CARE LTD,39404680,"4,399.85"
Department of Health,East London NHS Foundation Trust,08/09/2021,Laundry Maint Contracts,CH AMH MBU,JLA TOTAL CARE LTD,39404680,"4,399.82"
Department of Health,East London NHS Foundation Trust,08/09/2021,Laundry Maint Contracts,CH AMH Ruth Seifert Ward,JLA TOTAL CARE LTD,39404680,"4,399.83"
Department of Health,East London NHS Foundation Trust,10/09/2021,Phone Rental and Calls,Digital Recharges,VIRGIN MEDIA BUSINESS LTD,39473882,"24,589.48"
Department of Health,East London NHS Foundation Trust,10/09/2021,Commissioning Other Contr,NCEL NCA,OAK TREE FOREST LTD,39488590,"232,951.05"
Department of Health,East London NHS Foundation Trust,15/09/2021,Bldg/Eng Equip Maint/Rep,Estates,BARRY MORGAN LTD,39356838,"27,055.00"
Department of Health,East London NHS Foundation Trust,15/09/2021,Bldg/Eng Equip Maint/Rep,Estates,BARRY MORGAN LTD,39356933,"37,500.00"
Department of Health,East London NHS Foundation Trust,15/09/2021,Computer Hardware Purch,Bedfordshire CHS IT,SERVELEC HEALTHCARE LTD,39291827,"6,000.00"
Department of Health,East London NHS Foundation Trust,15/09/2021,Computer Hardware Purch,Bedfordshire CHS IT,SERVELEC HEALTHCARE LTD,39291827,"20,250.00"
Department of Health,East London NHS Foundation Trust,15/09/2021,Computer Hardware Purch,Bedfordshire CHS IT,SERVELEC HEALTHCARE LTD,39291827,"8,150.50"
Department of Health,East London NHS Foundation Trust,15/09/2021,Computer Hardware Purch,Bedfordshire CHS IT,SERVELEC HEALTHCARE LTD,39291827,"4,312.50"
Department of Health,East London NHS Foundation Trust,15/09/2021,Computer Hardware Purch,Bedfordshire CHS IT,SERVELEC HEALTHCARE LTD,39291827,"27,000.00"
Department of Health,East London NHS Foundation Trust,15/09/2021,Computer Hardware Purch,Bedfordshire CHS IT,SERVELEC HEALTHCARE LTD,39291827,"13,142.60"
Department of Health,East London NHS Foundation Trust,15/09/2021,Computer Hardware Purch,ICT Team,SERVELEC HEALTHCARE LTD,39291827,"8,150.50"
Department of Health,East London NHS Foundation Trust,15/09/2021,Computer Hardware Purch,ICT Team,SERVELEC HEALTHCARE LTD,39291827,"21,279.00"
Department of Health,East London NHS Foundation Trust,15/09/2021,Computer Hardware Purch,ICT Team,SERVELEC HEALTHCARE LTD,39291827,"10,000.00"
Department of Health,East London NHS Foundation Trust,15/09/2021,Computer Hardware Purch,ICT Team,SERVELEC HEALTHCARE LTD,39291827,"35,714.25"
Department of Health,East London NHS Foundation Trust,15/09/2021,Computer Hardware Purch,ICT Team,SERVELEC HEALTHCARE LTD,39291827,"15,028.75"
Department of Health,East London NHS Foundation Trust,15/09/2021,Printing Costs,Digital Infrastructure,APOGEE CORPORATION LTD,39330713,"43,308.65"
Department of Health,East London NHS Foundation Trust,15/09/2021,Rent,EF Centre Manor Park,COMMUNITY HEALTH PARTNERSHIPS LTD,39368559,"56,521.68"
Department of Health,East London NHS Foundation Trust,15/09/2021,Rent,EF Newby Place Wellbeing,COMMUNITY HEALTH PARTNERSHIPS LTD,39368560,"22,388.76"
Department of Health,East London NHS Foundation Trust,15/09/2021,Rent,EF Beds CHS Properties,COMMUNITY HEALTH PARTNERSHIPS LTD,39368564,"28,766.83"
Department of Health,East London NHS Foundation Trust,15/09/2021,Rent,EF East Ham Care Centre,COMMUNITY HEALTH PARTNERSHIPS LTD,39368565,"480,379.19"
Department of Health,East London NHS Foundation Trust,15/09/2021,Rent,EF Beaumont House,COMMUNITY HEALTH PARTNERSHIPS LTD,39368566,"72,200.65"
Department of Health,East London NHS Foundation Trust,15/09/2021,SLA Charges,EF CH and Newham Comm Facil,G4S FACILITIES MANAGEMENT (UK) LTD,39119413,"52,099.28"
Department of Health,East London NHS Foundation Trust,15/09/2021,SLA Charges,EF Wolfson House,G4S FACILITIES MANAGEMENT (UK) LTD,39119415,"76,601.00"
Department of Health,East London NHS Foundation Trust,15/09/2021,SLA Charges,EF John Howard Facilities,G4S FACILITIES MANAGEMENT (UK) LTD,39119417,"182,488.13"
Department of Health,East London NHS Foundation Trust,15/09/2021,SLA Charges,EF John Howard Facilities,G4S FACILITIES MANAGEMENT (UK) LTD,39167775,"21,000.00"
Department of Health,East London NHS Foundation Trust,15/09/2021,SrvcsRecd-Other NHS,NCEL SLA - BEH,BARNET ENFIELD AND HARINGEY MENTAL HEALTH NHS TRUST,39401351,"200,540.04"
Department of Health,East London NHS Foundation Trust,15/09/2021,SrvcsRecd-Other NHS,NCEL SLA - NELFT,NORTH EAST LONDON NHS FOUNDATION TRUST,39541992,"416,865.00"
Department of Health,East London NHS Foundation Trust,15/09/2021,Bought in Srv Fr NHS,CHB - Cambs Comm Services,CAMBRIDGESHIRE COMMUNITY SERVICES,39473866,"85,940.00"
Department of Health,East London NHS Foundation Trust,15/09/2021,Bought in Srv Fr NHS,CHB - Cambs Comm Services,CAMBRIDGESHIRE COMMUNITY SERVICES,39541961,"1,089,568.59"
Department of Health,East London NHS Foundation Trust,15/09/2021,Contractual Clinical Srv,Occupational Health,TEAM PREVENT UK LTD,39424232,"28,780.67"
Department of Health,East London NHS Foundation Trust,15/09/2021,Commissioning Other Contr,NCEL NCA,ATTAIN HEALTH MANAGEMENT SERVICES LTD,38854921,"24,900.00"
Department of Health,East London NHS Foundation Trust,15/09/2021,SrvcsRecd-Other NHS,NCEL NCA,WHITTINGTON HOSPITAL NHS TRUST,39401273,"45,416.16"
Department of Health,East London NHS Foundation Trust,17/09/2021,Bldg/Eng Equip Maint/Rep,Estates,BARRY MORGAN LTD,39572776,"33,247.72"
Department of Health,East London NHS Foundation Trust,17/09/2021,SLA Charges,Safeguarding Adults,LONDON BOROUGH OF HACKNEY,39547001,"27,500.00"
Department of Health,East London NHS Foundation Trust,22/09/2021,Bldg/Eng Equip Maint/Rep,EF Recharges Out,BARRY MORGAN LTD,39501995,"29,605.37"
Department of Health,East London NHS Foundation Trust,22/09/2021,Commissioning Other Contr,NCEL COLLAB CONTRA,HUNTERCOMBE MAIDENHEAD HOSPITAL,39615125,"25,862.06"
Department of Health,East London NHS Foundation Trust,22/09/2021,Drug Supplies,Pharmacy Department,JANSSEN CILAG LTD,39607210,"5,339.19"
Department of Health,East London NHS Foundation Trust,22/09/2021,Drug Supplies,Pharmacy Department,JANSSEN CILAG LTD,39607210,183.92
Department of Health,East London NHS Foundation Trust,22/09/2021,Drug Supplies,Pharmacy Department,JANSSEN CILAG LTD,39607210,"1,469.40"
Department of Health,East London NHS Foundation Trust,22/09/2021,Drug Supplies,Pharmacy Department,JANSSEN CILAG LTD,39607210,"4,711.08"
Department of Health,East London NHS Foundation Trust,22/09/2021,Drug Supplies,Pharmacy Department,JANSSEN CILAG LTD,39607210,"2,311.01"
Department of Health,East London NHS Foundation Trust,22/09/2021,Drug Supplies,Pharmacy Department,JANSSEN CILAG LTD,39607210,"3,339.60"
Department of Health,East London NHS Foundation Trust,22/09/2021,Drug Supplies,Pharmacy Department,JANSSEN CILAG LTD,39607210,"8,851.12"
Department of Health,East London NHS Foundation Trust,22/09/2021,Miscellaneous Expenditure,Business Development Unit,MIND BLMK,39615129,"34,663.74"
Department of Health,East London NHS Foundation Trust,22/09/2021,Bldg/Eng Equip Maint/Rep,Estates,KINGSWAY GROUP,39430487,"42,254.00"
Department of Health,East London NHS Foundation Trust,22/09/2021,Bldg/Eng Equip Maint/Rep,Estates,KINGSWAY GROUP,39430487,430.00
Department of Health,East London NHS Foundation Trust,22/09/2021,Bldg/Eng Equip Maint/Rep,Balance Sheet,KINGSWAY GROUP,39430487,"8,536.80"
Department of Health,East London NHS Foundation Trust,24/09/2021,Office Supplies,Corporate Directorate,CLARES OFFICE SUPPLIES LTD,39473920,"27,630.76"
Department of Health,East London NHS Foundation Trust,24/09/2021,CAMHS,Bedfordshire Directorate,CHUMS,39475421,"8,628.20"
Department of Health,East London NHS Foundation Trust,24/09/2021,CAMHS,Bedfordshire Directorate,CHUMS,39475421,"43,141.00"
Department of Health,East London NHS Foundation Trust,24/09/2021,SLA Charges,EF Luton and Beds,G4S FACILITIES MANAGEMENT (UK) LTD,39489410,"281,635.28"
Department of Health,East London NHS Foundation Trust,24/09/2021,Photocopying costs,Corpoate Directorate,XEROX (UK) LTD,39434067,"27,598.31"
Department of Health,East London NHS Foundation Trust,24/09/2021,Bldg/Eng Equip Maint/Rep,Estates,WELLTEX,39573305,"28,177.05"
Department of Health,East London NHS Foundation Trust,29/09/2021,Conferences and Seminars,Trust Board,TROXY,39139949,"22,250.00"
Department of Health,East London NHS Foundation Trust,29/09/2021,Rent,L-Estates and Facilities,CHAMBERLAIN GROUP (THE),39445893,"47,500.00"
Department of Health,East London NHS Foundation Trust,29/09/2021,Commissioning Other Contr,NCEL NCA,CYGNET BEHAVIOURAL HEALTH LTD,39615163,"41,030.00"
Department of Health,East London NHS Foundation Trust,29/09/2021,Drug Supplies,Balance Sheet,JANSSEN CILAG LTD,39685621,"19,158.27"
Department of Health,East London NHS Foundation Trust,29/09/2021,Drug Supplies,Balance Sheet,JANSSEN CILAG LTD,39685621,"2,574.88"
Department of Health,East London NHS Foundation Trust,29/09/2021,Drug Supplies,Balance Sheet,JANSSEN CILAG LTD,39685621,"7,836.80"
Department of Health,East London NHS Foundation Trust,29/09/2021,Drug Supplies,Balance Sheet,JANSSEN CILAG LTD,39685621,"5,653.26"
Department of Health,East London NHS Foundation Trust,29/09/2021,Drug Supplies,Balance Sheet,JANSSEN CILAG LTD,39685621,"4,711.08"
Department of Health,East London NHS Foundation Trust,29/09/2021,Drug Supplies,Balance Sheet,JANSSEN CILAG LTD,39685621,"30,622.02"
Department of Health,East London NHS Foundation Trust,29/09/2021,Drug Supplies,Balance Sheet,JANSSEN CILAG LTD,39685621,"4,781.40"
Department of Health,East London NHS Foundation Trust,29/09/2021,Drug Supplies,Balance Sheet,JANSSEN CILAG LTD,39685621,"10,130.12"
Department of Health,East London NHS Foundation Trust,29/09/2021,Drug Supplies,Balance Sheet,JANSSEN CILAG LTD,39685621,"13,276.68"
Department of Health,East London NHS Foundation Trust,29/09/2021,Travel Costs,Corpoate Directorate,CORPORATE TRAVEL MANAGEMENT NORTH LTD,39461905,"30,601.52"
